bitfinex-derivatives/quotes_ETHF0:USTF0_20250912
["timestamp","ask_amount","ask_price","bid_price","bid_amount"]
[1757699292577,1.035,4623.5,4623.4,0.2451]
[1757699292774,1.035,4623.5,4623.4,0.8837]
[1757699292970,0.4554,4623.9,4623.4,0.4909]
[1757699293285,0.4554,4623.9,4623.0,0.1566]
[1757699293286,0.9516,4623.9,4623.3,0.116]
[1757699293469,0.561,4623.9,4623.3,0.5088]
[1757699293674,0.0648,4623.9,4623.3,0.6069]
[1757699293878,0.9516,4623.9,4623.8,0.2451]
[1757699294382,0.8868,4623.9,4623.8,0.2451]
[1757699294782,0.8868,4623.9,4623.5,0.3928]
[1757699295081,0.8868,4623.9,4623.3,0.141]
[1757699295280,0.2551,4623.1,4623.0,1.0403]
[1757699295476,0.6457,4623.4,4623.3,0.4909]
[1757699295673,0.6457,4623.4,4623.3,0.8837]
[1757699295873,0.3906,4623.8,4623.4,0.3928]
[1757699296070,1.4463959,4623.7,4623.6,0.8837]
[1757699296282,1.4463959,4623.7,4623.6,0.2451]
[1757699296584,1.4463959,4623.7,4623.6,0.8837]
[1757699296784,1.4463959,4623.7,4623.6,0.4909]
[1757699297280,0.27569707,4624.0,4623.5,0.1566]
[1757699297576,1.44653097,4623.9,4623.3,0.127]
[1757699297770,0.4962,4623.4,4623.3,0.142]
[1757699297976,0.8868,4623.4,4623.3,0.3871]
[1757699298583,0.8868,4623.4,4623.3,0.2451]
[1757699299986,0.8868,4623.4,4623.0,0.6218]
[1757699300286,0.8868,4623.3,4623.2,0.2451]
[1757699302087,0.8868,4623.3,4623.0,0.229]
[1757699303194,0.4962,4622.2,4622.1,0.8837]
[1757699303383,0.1482,4623.0,4622.1,1.1127]
[1757699303688,0.1482,4623.5,4622.2,0.3928]
[1757699303890,0.21632,4623.4,4622.2,0.3928]
[1757699304081,0.21631,4623.9,4622.2,0.3928]
[1757699304481,0.21631,4623.8,4622.2,0.3928]
[1757699304681,0.21631,4623.9,4622.2,0.3928]
[1757699305080,0.21631,4623.8,4622.2,0.3928]
[1757699305282,0.21631,4623.9,4622.2,0.3928]
[1757699305682,0.21631,4623.8,4623.5,0.1566]
[1757699305884,0.21631,4623.9,4623.5,0.1566]
[1757699306290,0.21628,4623.8,4623.3,0.3928]
[1757699306686,0.21628,4623.7,4623.3,0.3928]
[1757699306890,0.21628,4623.9,4623.0,0.1566]
[1757699307285,0.21629,4623.8,4623.0,0.1566]
[1757699307491,0.21629,4623.9,4623.0,0.4007]
[1757699307692,0.0648,4623.7,4623.1,0.6102]
[1757699307886,0.0648,4623.7,4623.6,0.8697]
[1757699308296,0.0648,4623.7,4623.5,0.146]
[1757699308484,0.0648,4623.7,4623.1,0.3661]
[1757699308684,0.0648,4623.7,4623.1,0.6102]
[1757699308887,0.0648,4623.7,4623.2,0.2441]
[1757699309191,0.0648,4623.7,4623.5,0.146]
[1757699309389,0.0648,4623.7,4623.0,0.4007]
[1757699309594,0.0648,4623.7,4623.1,0.3661]
[1757699310297,0.0648,4623.7,4623.6,0.6102]
[1757699310685,0.0648,4623.7,4623.6,0.8697]
[1757699311588,1.16144568,4625.3,4623.7,0.3661]
[1757699311793,1.16144568,4625.3,4623.6,0.5036]
[1757699311794,0.55900971,4625.2,4625.1,0.3661]
[1757699312093,0.55900971,4625.2,4625.1,0.8697]
[1757699312685,1.16144568,4626.3,4625.1,0.8697]
[1757699312888,1.16144568,4626.3,4625.2,0.3661]
[1757699313088,0.55883312,4626.6,4625.2,0.3661]
[1757699313089,0.77502313,4626.2,4625.2,0.3661]
[1757699313387,0.55883312,4626.1,4625.2,0.2441]
[1757699313595,0.55883312,4626.0,4625.5,0.146]
[1757699313797,0.55883312,4625.9,4625.6,0.3661]
[1757699313986,0.55883312,4625.8,4625.6,0.3661]
[1757699314181,0.55883312,4625.7,4625.5,0.146]
[1757699314386,1.22624568,4626.6,4625.5,0.146]
[1757699314387,0.55883312,4625.6,4625.5,0.146]
[1757699314589,0.55883312,4625.6,4625.2,0.3661]
[1757699314789,0.0648,4626.6,4625.2,0.3661]
[1757699315089,1.93606335,4626.5,4625.2,0.6102]
[1757699315289,0.55844766,4626.4,4625.2,0.6102]
[1757699315488,0.55844766,4626.4,4625.0,0.146]
[1757699315489,0.77462766,4626.4,4625.3,0.3661]
[1757699315685,0.77462766,4626.3,4625.3,0.3661]
[1757699315887,0.55844766,4626.2,4625.3,0.3661]
[1757699316085,0.55844766,4626.1,4625.3,0.3661]
[1757699316288,0.55844766,4626.0,4625.3,0.2441]
[1757699316495,0.55844766,4625.9,4625.6,0.3661]
[1757699316797,0.55844766,4625.8,4625.2,0.3661]
[1757699317096,0.21618,4626.5,4625.1,0.3661]
[1757699317097,0.55844766,4625.7,4625.1,0.3661]
[1757699317289,0.55844766,4625.6,4625.0,0.146]
[1757699317485,0.55844766,4625.5,4625.1,0.3661]
[1757699317685,0.21618,4626.5,4625.2,0.3661]
[1757699317885,0.55786421,4626.4,4625.2,0.3661]
[1757699318085,1.22624568,4626.6,4625.2,0.3661]
[1757699318086,0.55786421,4626.3,4625.2,0.3661]
[1757699318298,0.55786421,4626.2,4625.2,0.3661]
[1757699318498,0.55786421,4626.1,4625.2,0.3661]
[1757699318797,0.55786421,4626.0,4625.5,0.146]
[1757699318990,0.55786421,4625.9,4625.6,0.2441]
[1757699319192,0.55786421,4625.8,4625.7,0.6102]
[1757699319496,0.55786421,4625.8,4625.7,0.8697]
[1757699322593,0.0648,4626.6,4626.5,0.146]
[1757699322797,0.0648,4626.6,4626.5,0.5121]
[1757699323094,0.55726485,4626.8,4626.5,0.5121]
[1757699323305,0.55726485,4626.7,4626.6,0.3661]
[1757699323596,0.55726485,4626.7,4626.6,0.6102]
[1757699323786,0.55726485,4626.7,4626.6,0.3661]
[1757699325695,0.55726485,4626.7,4626.1,0.3572]
[1757699325892,0.55726485,4626.6,4626.5,0.5068]
[1757699327187,0.55726485,4626.6,4626.0,0.146]
[1757699327391,31.152,4627.2,4626.0,0.146]
[1757699327392,31.152,4627.2,4626.0,0.744]
[1757699327593,0.77271035,4627.1,4626.0,0.744]
[1757699327796,0.55657035,4627.0,4626.0,0.744]
[1757699327991,0.55657035,4626.9,4625.6,0.3572]
[1757699328302,0.229,4626.8,4625.6,0.598]
[1757699328496,0.55657035,4626.7,4625.7,0.598]
[1757699328692,0.229,4626.6,4625.9,0.3572]
[1757699328898,0.55657035,4626.5,4626.1,0.3572]
[1757699329203,0.55657035,4626.4,4626.1,0.3572]
[1757699329404,0.55657035,4626.3,4626.0,0.1496]
[1757699329698,0.229,4626.6,4626.0,0.5068]
[1757699330001,0.55656586,4626.5,4626.1,0.3572]
[1757699330203,0.55656586,4626.4,4626.1,0.3572]
[1757699330399,0.55656586,4626.3,4626.1,0.3572]
[1757699330599,0.229,4626.6,4625.6,0.3572]
[1757699330811,0.55659467,4626.5,4625.6,0.3572]
[1757699331002,0.55659467,4626.4,4625.6,0.3572]
[1757699331302,0.55659467,4626.3,4625.7,0.3572]
[1757699331597,31.152,4627.2,4626.1,0.3572]
[1757699331805,1.00171686,4627.1,4626.1,0.3572]
[1757699331999,0.55656686,4627.0,4626.2,0.3572]
[1757699332202,0.55656686,4626.9,4626.8,0.8598]
[1757699332394,0.01559417,4627.3,4627.0,0.1496]
[1757699332596,0.01559417,4627.3,4627.2,0.5026]
[1757699332792,0.01559417,4627.3,4627.2,0.8598]
[1757699335202,0.00416879,4629.0,4627.2,0.8598]
[1757699335404,0.78514665,4628.8,4628.5,0.1496]
[1757699335708,0.55614665,4628.7,4628.6,0.3572]
[1757699336599,0.78502896,4628.7,4628.6,0.3572]
[1757699337302,0.78502896,4628.7,4628.5,0.1496]
[1757699337605,0.4942,4628.2,4628.1,0.5189]
[1757699337805,0.8456,4628.2,4628.1,0.5189]
[1757699338005,0.8456,4628.2,4628.1,0.2732]
[1757699338508,0.8456,4628.2,4627.5,0.1496]
[1757699339498,0.8456,4628.2,4627.6,0.3841]
[1757699339800,0.1171,4628.5,4627.0,0.1496]
[1757699339801,0.4942,4627.1,4627.0,0.6416]
[1757699340302,0.4942,4627.1,4627.0,0.2463]
[1757699340498,0.4942,4627.1,4627.0,0.7733]
[1757699340698,0.2543,4627.1,4627.0,1.019]
[1757699340901,0.228,4627.6,4627.0,0.1429]
[1757699341108,0.4942,4627.2,4627.1,0.8761]
[1757699341300,0.4942,4627.2,4626.5,0.1429]
[1757699341301,0.8456,4627.2,4626.6,0.3841]
[1757699341697,0.4942,4627.2,4627.1,0.8761]
[1757699342006,0.228,4628.1,4627.2,0.3841]
[1757699342205,0.55681676,4628.0,4627.2,0.3841]
[1757699342405,1.05101676,4627.9,4627.8,0.6304]
[1757699343201,0.228,4628.4,4627.9,0.3841]
[1757699343399,0.3514,4628.2,4628.0,0.3841]
[1757699343601,1.40242618,4628.1,4628.0,0.3841]
[1757699343806,1.05102618,4628.1,4628.0,1.019]
[1757699344302,0.228,4628.6,4628.0,0.6349]
[1757699344503,0.81096979,4628.5,4628.4,0.2463]
[1757699344701,1.05086979,4628.5,4628.4,0.6304]
[1757699345103,1.27886979,4628.5,4628.4,0.6304]
[1757699345410,1.88364568,4628.5,4628.4,0.6304]
[1757699345608,2.21231547,4628.5,4628.4,0.6304]
[1757699346609,2.21231547,4628.5,4628.4,0.8761]
[1757699346809,1.05086979,4628.5,4628.4,0.8761]
[1757699347009,2.21231547,4628.5,4628.4,0.8761]
[1757699347812,0.4942,4628.2,4628.0,0.1429]
[1757699348108,0.4942,4628.2,4628.1,0.6304]
[1757699348509,0.8456,4628.2,4627.6,0.3841]
[1757699348706,0.55660079,4628.4,4627.6,0.8761]
[1757699348707,0.4942,4627.7,4627.6,0.8761]
[1757699348910,0.55660079,4627.9,4627.6,0.492]
[1757699349104,0.55660079,4627.8,4627.6,0.492]
[1757699349304,0.55660079,4627.7,4627.6,0.492]
[1757699349707,0.55660079,4628.3,4627.6,4.492]
[1757699350007,31.6624,4628.9,4628.1,0.492]
[1757699350008,0.55660079,4628.2,4628.1,0.492]
[1757699350214,1.64374568,4628.7,4628.6,0.8761]
[1757699350605,2.20043631,4628.7,4628.6,0.8761]
[1757699351410,0.8456,4627.6,4627.5,0.2463]
[1757699351714,0.55669063,4627.6,4627.5,1.019]
[1757699352011,0.55671323,4628.1,4628.0,0.6349]
[1757699352209,0.4823,4628.2,4628.1,0.8761]
[1757699352410,1.03911322,4628.2,4628.1,0.8761]
[1757699353504,0.55681322,4628.2,4628.1,0.8761]
[1757699353708,0.55681322,4628.2,4628.1,4.8761]
[1757699355204,0.17,4628.9,4628.8,0.492]
[1757699355404,0.17,4628.9,4628.8,0.8761]
[1757699355609,0.72674908,4628.9,4628.8,0.8761]
[1757699356310,0.98104908,4628.9,4628.8,0.8761]
[1757699356899,1.22094908,4628.9,4628.8,0.8761]
[1757699358012,0.98104908,4628.9,4628.8,0.8761]
[1757699358211,0.17,4628.9,4628.8,0.8761]
[1757699359209,0.72689466,4628.9,4628.8,0.8761]
[1757699359817,0.17,4628.9,4628.8,0.8761]
[1757699360111,0.5794,4629.8,4628.8,0.8761]
[1757699360112,0.3822,4630.5,4629.3,0.8761]
[1757699360314,0.3822,4630.1,4629.3,0.8761]
[1757699360608,0.3822,4630.1,4629.4,0.3841]
[1757699360819,0.2543,4629.6,4629.5,0.6349]
[1757699361015,0.3822,4630.4,4629.5,0.6349]
[1757699361208,0.55671474,4630.3,4629.6,0.3841]
[1757699361416,0.2543,4629.7,4629.6,0.8761]
[1757699361611,0.81101474,4629.7,4629.6,0.8761]
[1757699362115,1.43311474,4629.7,4629.1,0.3841]
[1757699362422,0.2543,4629.2,4629.1,0.492]
[1757699362711,0.2543,4629.2,4629.1,0.8761]
[1757699363210,0.3822,4629.7,4629.2,0.3841]
[1757699363510,0.2876,4630.5,4629.5,0.1429]
[1757699363717,0.93896896,4630.4,4629.6,0.3841]
[1757699364015,0.55676896,4630.3,4629.6,0.3841]
[1757699364215,0.55676896,4630.2,4629.6,0.3841]
[1757699364519,0.8764,4629.7,4629.6,0.8761]
[1757699364715,1.43316896,4629.7,4629.6,0.8761]
[1757699365116,1.05096896,4629.7,4629.6,0.8761]
[1757699366114,1.43316896,4629.7,4629.6,0.8761]
[1757699366417,1.05096896,4629.7,4629.6,0.8761]
[1757699366719,1.05072791,4629.7,4629.6,0.8761]
[1757699366920,0.4942,4629.7,4629.6,0.8761]
[1757699367216,0.0647,4630.2,4629.7,0.3716]
[1757699367410,1.05898664,4630.1,4630.0,1.0052]
[1757699368010,0.55648664,4630.1,4630.0,1.0052]
[1757699368216,0.80928664,4630.1,4630.0,1.0052]
[1757699368718,0.55648664,4630.1,4630.0,1.0052]
[1757699368917,0.80928664,4630.1,4630.0,1.0052]
[1757699369619,0.55648664,4630.1,4630.0,1.0052]
[1757699370022,0.80928664,4630.1,4630.0,1.0052]
[1757699370317,0.8795,4630.6,4630.5,0.2409]
[1757699370616,0.55579577,4630.6,4630.5,1.0052]
[1757699370819,1.05829577,4630.6,4630.5,1.0052]
[1757699371117,1.4352568,4630.6,4630.5,0.6125]
[1757699371319,1.05826642,4630.6,4630.0,0.1514]
[1757699371515,0.5025,4630.6,4630.5,1.0052]
[1757699371718,1.05825919,4630.6,4630.5,1.0052]
[1757699371914,0.0647,4631.0,4630.6,0.3716]
[1757699372120,0.0647,4631.0,4630.9,0.8538]
[1757699372320,0.9442,4631.0,4630.9,0.8538]
[1757699372717,0.0647,4631.0,4630.9,0.8538]
[1757699374310,0.0647,4631.0,4630.5,0.1514]
[1757699374311,0.8795,4631.5,4631.4,0.6125]
[1757699374518,1.4348561,4631.5,4631.4,0.6125]
[1757699374914,0.5025,4631.2,4631.1,0.6125]
[1757699375314,1.4348561,4631.2,4631.1,0.6125]
[1757699375911,1.4348561,4631.2,4630.3,0.3716]
[1757699376115,0.5025,4630.4,4630.3,0.6125]
[1757699376523,1.43490366,4630.4,4630.3,0.6125]
[1757699376818,0.2528,4630.2,4630.1,0.6125]
[1757699377011,0.2528,4630.2,4630.1,0.8538]
[1757699377818,0.53309296,4630.6,4630.5,0.3923]
[1757699378022,0.58608639,4630.6,4630.5,1.0052]
[1757699378222,1.08858639,4630.6,4630.5,1.0052]
[1757699378523,0.83888639,4630.6,4630.5,1.0052]
[1757699379112,1.08858639,4630.6,4630.5,1.0052]
[1757699379525,1.08858639,4630.6,4630.0,0.1514]
[1757699379719,0.2528,4630.2,4630.1,0.8538]
[1757699380119,0.2528,4630.6,4630.5,1.0052]
[1757699380314,0.5025,4630.6,4630.0,0.1514]
[1757699380520,0.2528,4630.2,4630.1,0.8538]
[1757699380821,1.16040537,4631.3,4630.2,0.3716]
[1757699381018,0.2528,4630.3,4630.2,0.8538]
[1757699381726,0.80885456,4630.3,4630.2,0.8538]
[1757699384125,0.80885456,4630.3,4629.0,0.1514]
[1757699384126,0.5025,4629.3,4629.2,0.3716]
[1757699384426,0.5025,4629.1,4629.0,0.523]
[1757699384621,1.05915901,4629.1,4629.0,0.7639]
[1757699385419,0.80945901,4629.1,4629.0,1.0052]
[1757699385621,0.55665901,4629.1,4629.0,1.0052]
[1757699385823,1.16040537,4629.9,4629.0,0.6336]
[1757699386026,0.2363,4629.9,4629.8,0.4846]
[1757699386327,0.79420542,4629.9,4629.8,0.4846]
[1757699386520,1.03470542,4629.9,4629.5,0.145]
[1757699386730,0.4768,4629.7,4629.6,0.3735]
[1757699387022,1.03470542,4629.7,4629.6,0.3735]
[1757699387422,1.03470542,4629.7,4629.6,0.6074]
[1757699387721,0.79420542,4629.7,4629.6,0.8581]
[1757699388131,1.03470542,4629.7,4629.6,0.3735]
[1757699388435,1.29300542,4629.7,4629.1,0.3735]
[1757699388626,0.4768,4629.2,4629.1,0.6074]
[1757699388823,1.03470542,4629.2,4629.1,0.6074]
[1757699389022,1.29300542,4629.2,4629.1,0.3735]
[1757699389230,1.03470542,4629.2,4629.1,0.8581]
[1757699389529,0.55790542,4629.2,4629.1,0.8581]
[1757699389727,0.55790542,4629.2,4629.1,0.4846]
[1757699389929,0.2363,4629.3,4629.2,0.6074]
[1757699390132,0.4768,4629.3,4629.2,0.6074]
[1757699390322,0.55827721,4629.5,4629.2,0.8581]
[1757699390527,0.79877721,4629.4,4629.3,0.3735]
[1757699390836,0.79457721,4629.4,4629.3,0.8581]
[1757699391530,0.55827721,4629.4,4629.3,0.8581]
[1757699391733,0.79457721,4629.4,4629.3,0.8581]
[1757699391925,1.03507721,4629.4,4629.3,0.8581]
[1757699392126,0.4768,4628.9,4628.8,0.3735]
[1757699392322,0.79457721,4628.9,4628.8,0.8581]
[1757699392722,1.03507721,4628.9,4628.8,0.8581]
[1757699393326,0.2583,4628.8,4628.6,0.3735]
[1757699393525,1.29310834,4628.7,4628.6,0.3735]
[1757699393729,1.03480834,4628.7,4628.6,0.3735]
[1757699393930,1.03480834,4628.7,4628.1,0.3735]
[1757699394131,0.226,4629.4,4626.5,0.145]
[1757699394132,0.1412,4628.5,4627.1,0.3735]
[1757699394331,0.1412,4628.5,4626.1,0.3735]
[1757699394332,0.2583,4628.2,4626.1,0.3735]
[1757699394633,0.1171,4627.5,4626.1,0.3735]
[1757699394933,32.50340537,4627.4,4625.5,0.145]
[1757699395127,1.94641371,4627.3,4625.6,0.3735]
[1757699395327,0.2583,4627.1,4625.6,0.3735]
[1757699395530,0.55833049,4627.0,4625.6,0.3735]
[1757699395730,0.2583,4626.8,4625.6,0.3735]
[1757699396131,0.228,4626.9,4625.6,0.3735]
[1757699396335,0.2583,4626.8,4625.6,0.3735]
[1757699396728,0.2583,4627.3,4626.5,0.146]
[1757699396928,0.2536,4627.8,4627.0,0.146]
[1757699397128,0.228,4627.7,4627.1,0.3713]
[1757699397334,0.2536,4627.4,4626.1,0.3713]
[1757699397545,0.228,4627.3,4626.1,0.3713]
[1757699398034,0.2536,4627.4,4626.1,0.3713]
[1757699398035,0.228,4627.2,4626.1,0.3713]
[1757699398425,0.2536,4627.4,4626.1,0.3713]
[1757699398625,0.228,4627.3,4627.1,0.3713]
[1757699398831,0.2536,4627.8,4627.1,0.3713]
[1757699399032,0.228,4627.7,4627.1,0.3713]
[1757699399238,31.119,4627.9,4627.5,0.146]
[1757699399429,0.228,4627.8,4627.6,0.3713]
[1757699399625,0.228,4627.8,4627.5,0.146]
[1757699400232,31.119,4627.9,4627.6,0.3713]
[1757699400427,0.228,4627.8,4627.6,0.3713]
[1757699400838,0.0648,4628.4,4628.0,0.146]
[1757699401031,0.2536,4628.3,4627.4,0.3713]
[1757699401332,0.2536,4628.2,4627.0,0.3713]
[1757699401529,0.80824943,4628.1,4627.0,0.5173]
[1757699401838,0.2536,4627.9,4627.0,0.5173]
[1757699402037,0.2536,4627.9,4627.1,0.3713]
[1757699402532,31.124,4628.1,4628.0,0.146]
[1757699402739,31.124,4628.1,4628.0,0.5173]
[1757699403845,35.3776,4628.1,4627.0,0.146]
[1757699404141,31.3776,4628.1,4627.0,0.146]
[1757699404439,0.2536,4627.9,4626.0,0.146]
[1757699404631,0.2536,4627.7,4626.6,0.3713]
[1757699404830,0.228,4627.6,4626.6,0.3713]
[1757699405342,0.228,4627.5,4626.6,0.3713]
[1757699405539,0.2536,4627.7,4626.6,0.3713]
[1757699405740,0.228,4627.6,4626.6,0.3713]
[1757699406139,0.2536,4627.5,4626.6,0.3713]
[1757699407034,0.1124,4627.5,4626.6,0.3713]
[1757699407238,0.2536,4627.4,4626.6,0.3713]
[1757699407438,0.2536,4627.3,4626.1,0.3713]
[1757699407741,0.21614,4627.4,4626.1,0.3713]
[1757699408340,31.124,4628.1,4626.1,0.3713]
[1757699408341,0.2536,4627.3,4626.1,0.3713]
[1757699409139,0.4816,4627.2,4626.5,0.146]
[1757699409439,0.7598,4626.7,4626.1,0.3713]
[1757699409636,0.2543,4626.2,4626.1,0.6239]
[1757699409845,0.5062,4626.2,4626.1,0.6239]
[1757699410840,0.6512,4626.2,4626.1,0.8588]
[1757699411132,0.136,4626.3,4626.2,0.8588]
[1757699411430,0.136,4626.3,4626.0,0.146]
[1757699411431,0.228,4626.7,4626.6,0.8588]
[1757699412345,0.61499013,4626.7,4626.6,0.8588]
[1757699412545,0.86689013,4626.7,4626.6,0.3713]
[1757699412745,1.12049013,4626.7,4626.6,0.3713]
[1757699413244,0.2543,4626.3,4626.2,0.6239]
[1757699413446,0.5062,4626.3,4626.2,0.6239]
[1757699413742,0.63889013,4626.3,4626.2,0.6239]
[1757699413934,0.63889013,4626.3,4626.2,0.8588]
[1757699414332,0.63889013,4626.3,4626.2,0.3713]
[1757699414543,0.5062,4626.1,4626.0,0.7699]
[1757699414738,0.13269013,4626.3,4626.0,1.0048]
[1757699415049,0.13269013,4626.3,4626.2,0.8588]
[1757699415542,0.38699013,4626.3,4626.2,0.8588]
[1757699416237,0.36069013,4626.3,4626.2,0.8588]
[1757699416435,0.13269013,4626.3,4626.2,0.8588]
[1757699417041,0.38699013,4626.3,4626.2,0.8588]
[1757699417242,0.63889013,4626.3,4626.2,0.8588]
[1757699417446,0.86689013,4626.3,4626.2,0.8588]
[1757699418044,0.13269013,4626.3,4626.2,0.8588]
[1757699419347,0.68949485,4626.3,4626.2,0.8588]
[1757699420043,1.19569485,4626.3,4626.2,0.8588]
[1757699420245,1.19569485,4626.3,4626.2,0.3713]
[1757699420441,0.68949485,4626.3,4626.2,0.8588]
[1757699420646,0.91749485,4626.3,4626.2,0.8588]
[1757699420858,0.68949485,4626.3,4626.2,0.8588]
[1757699423047,1.19569485,4626.3,4626.2,0.8588]
[1757699423242,0.2536,4626.2,4626.0,0.5173]
[1757699423442,0.55680472,4626.1,4626.0,1.0048]
[1757699423650,0.68949485,4626.1,4626.0,1.0048]
[1757699425347,0.0648,4626.9,4626.8,0.8588]
[1757699425651,0.228,4627.0,4626.8,0.8588]
[1757699425850,0.5907,4627.0,4626.9,0.3713]
[1757699426050,0.4823,4627.0,4626.9,0.6239]
[1757699426250,0.845,4627.0,4626.9,0.8588]
[1757699426451,1.16040537,4627.2,4627.0,0.3713]
[1757699426647,1.75110537,4627.5,4627.2,0.8588]
[1757699426850,0.8515,4627.3,4627.2,0.2526]
[1757699427148,0.5926,4626.9,4626.8,0.6109]
[1757699427353,0.8298,4626.9,4626.8,0.6109]
[1757699427743,0.8298,4626.9,4626.8,0.2526]
[1757699428451,0.8298,4626.9,4626.4,0.3583]
[1757699428850,0.36,4626.8,4626.0,0.5043]
[1757699429240,0.36,4626.8,4626.1,0.3583]
[1757699429654,0.5926,4626.8,4626.7,0.8435]
[1757699430051,0.228,4627.1,4626.7,0.4852]
[1757699430249,0.36,4627.0,4626.8,0.3583]
[1757699430452,0.228,4627.2,4627.0,0.3583]
[1757699430642,1.16380302,4627.5,4627.2,0.4852]
[1757699430952,0.8206,4627.5,4627.4,0.8435]
[1757699431147,0.36,4627.4,4626.6,0.3583]
[1757699431553,0.8298,4627.4,4627.3,0.2526]
[1757699431852,1.0578,4627.4,4627.3,0.2526]
[1757699432359,0.8298,4627.3,4627.2,0.8435]
[1757699432648,0.8298,4627.3,4627.2,0.4852]
[1757699433053,0.8298,4627.3,4627.2,0.2526]
[1757699433454,0.8298,4627.3,4626.8,0.3583]
[1757699434046,0.36,4627.2,4626.8,0.3583]
[1757699434245,0.4698,4627.3,4626.8,0.3583]
[1757699434246,0.5926,4626.9,4626.8,0.6109]
[1757699434451,0.36,4626.8,4626.0,0.3583]
[1757699434754,0.8298,4626.1,4626.0,0.6109]
[1757699434954,0.8298,4626.1,4626.0,0.8435]
[1757699436548,1.16380302,4626.9,4626.0,0.6282]
[1757699436749,1.16380302,4626.9,4626.8,0.8435]
[1757699436750,0.2326,4626.9,4626.8,0.8435]
[1757699437556,0.79328404,4626.9,4626.8,0.8435]
[1757699437758,1.15328404,4626.9,4626.8,0.8435]
[1757699438954,1.39048404,4626.9,4626.8,0.8435]
[1757699439154,1.39048404,4626.9,4626.3,0.3583]
[1757699439352,0.5926,4626.4,4626.3,0.6109]
[1757699439556,1.15328404,4626.4,4626.3,0.8435]
[1757699439947,1.39048404,4626.4,4626.3,0.8435]
[1757699440150,1.39048404,4626.4,4625.7,0.3583]
[1757699440349,0.8298,4626.4,4625.7,0.3583]
[1757699440848,0.56151,4626.3,4625.7,0.3583]
[1757699441150,0.8298,4626.3,4626.2,0.8435]
[1757699441352,0.8298,4626.3,4624.5,0.532]
[1757699441353,1.39134622,4626.3,4625.1,0.3583]
[1757699441555,0.8298,4625.2,4625.1,0.2526]
[1757699441755,0.8298,4625.2,4625.1,0.4852]
[1757699441952,0.8298,4625.2,4625.1,0.8435]
[1757699442549,0.36,4625.4,4625.2,0.3583]
[1757699442755,0.36,4625.4,4624.5,0.143]
[1757699442756,0.36,4625.4,4625.3,0.8435]
[1757699443149,0.5926,4625.4,4625.3,0.8435]
[1757699443366,0.8298,4625.4,4625.3,0.4852]
[1757699443558,1.39126383,4625.4,4624.9,0.3583]
[1757699443759,0.8298,4625.4,4624.9,0.3583]
[1757699443960,0.2326,4624.6,4624.5,0.6109]
[1757699444165,0.8298,4624.0,4623.9,0.2526]
[1757699444462,0.5926,4624.0,4623.9,0.8435]
[1757699445462,0.8298,4624.0,4623.9,0.4852]
[1757699445655,0.8298,4624.0,4623.4,0.3583]
[1757699445656,0.9701,4624.0,4623.4,0.3583]
[1757699445857,0.36,4623.8,4622.8,0.16440075]
[1757699446051,0.5926,4623.8,4623.7,0.2526]
[1757699446354,0.5926,4623.8,4623.7,0.8435]
[1757699446962,0.2326,4623.8,4623.7,0.8435]
[1757699447154,0.5926,4623.8,4623.7,0.8435]
[1757699447756,0.163,4624.8,4623.8,0.3583]
[1757699447955,0.163,4624.8,4623.5,0.143]
[1757699447956,0.2326,4624.8,4624.7,0.8435]
[1757699448159,0.236,4624.8,4624.7,0.8435]
[1757699448354,0.8172,4624.8,4624.2,0.3385]
[1757699448763,0.8172,4624.8,4623.5,0.143]
[1757699448958,0.8172,4624.8,4623.7,0.3385]
[1757699452056,0.8172,4624.8,4623.8,0.21625]
[1757699452257,0.8172,4624.8,4624.7,0.7966]
[1757699452454,0.5792,4624.8,4624.7,0.7966]
[1757699453365,0.8172,4624.8,4624.7,0.4581]
[1757699453558,0.8172,4624.8,4624.2,0.3385]
[1757699454759,0.8172,4624.8,4623.6,0.3385]
[1757699454959,0.8172,4624.8,4623.6,0.55475999]
[1757699454960,0.3432,4624.7,4623.6,0.55475999]
[1757699455157,0.3432,4624.7,4623.7,0.21625]
[1757699455467,0.3432,4624.7,4623.8,0.3385]
[1757699455774,0.3432,4625.0,4624.7,0.3385]
[1757699455961,0.5792,4625.0,4624.9,0.7966]
[1757699456160,0.9599,4625.0,4624.9,0.2285]
[1757699456458,0.9599,4625.0,4624.4,0.3385]
[1757699456666,0.9599,4625.0,4623.9,0.3385]
[1757699459468,0.9599,4625.0,4624.1,0.3523]
[1757699459971,0.0648,4625.1,4625.0,0.3523]
[1757699460174,0.0648,4625.1,4625.0,0.8469]
[1757699460373,0.3673,4626.0,4625.0,0.4946]
[1757699460565,0.8016,4625.2,4625.1,0.8469]
[1757699460873,0.8016,4625.2,4624.1,0.3523]
[1757699461068,0.3511,4625.1,4624.1,0.3523]
[1757699461266,0.3511,4624.9,4624.1,0.56853]
[1757699461467,0.8016,4624.9,4624.8,0.2465]
[1757699461676,0.8016,4624.9,4624.8,0.4946]
[1757699462576,0.8016,4624.9,4624.8,0.8469]
[1757699462777,0.1403,4625.5,4624.8,0.4946]
[1757699462975,0.0648,4625.2,4625.1,0.4946]
[1757699463165,0.0648,4625.2,4625.1,0.8469]
[1757699463872,0.2907,4625.2,4625.1,0.8469]
[1757699464080,0.6418,4625.2,4625.1,0.8469]
[1757699464379,0.0648,4625.2,4625.1,0.8469]
[1757699465881,0.8664,4625.2,4625.1,0.4946]
[1757699466180,0.8664,4625.2,4624.6,0.3523]
[1757699466478,0.8664,4625.2,4624.0,0.1396]
[1757699466479,0.8664,4625.2,4624.1,0.3523]
[1757699469473,0.8664,4625.2,4625.1,0.2465]
[1757699470172,0.8664,4625.2,4624.1,0.3523]